Workbook

Sheet Auslegung
B1: =Translation!A4 -> WWK vs Hot water cylinders
B5: =Translation!A5 -> Please select your draw-off point and frequency of use.
C7: =Translation!$A$6 -> Bath tub
C9: =Translation!$A$7 -> Shower
C11: =Translation!$A$8 -> Basin
C13: =Translation!$A$9 -> Kitchen sink
C15: =Translation!$A$10 -> Handwash sink
B17: =Translation!A20 -> Please select the DHW heat pump
C19: =Translation!A41 -> Type of heat pump
C21: =Translation!A42 -> Yearly COP | H21: 3.42
C23: =Translation!A43 -> Heat losses [kWh/day] | H23: 0.79
C25: =Translation!A44 -> Investment costs [€] | H25: 2350
C27: =Translation!A45 -> Installation costs [€] | H27: 350
B29: =Translation!A21 -> How do you actually generate your hot water?
C31: =Translation!A46 -> Heat generator
C33: =Translation!A22 -> DHW cylinder is broken?
C35: =Translation!A43 -> Heat losses [kWh/day] | H35: 1.2
C37: =Translation!A44 -> Investment costs [€] | H37: 0
C39: =Translation!A45 -> Installation costs [€] | H39: 0 | O39: =Translation!A39 -> The use of the calculation tool is exclusiv for determining the economy of DHW heat pumps. It does not replace the design of the required size of heat pump and hot water cylinders.
AE41: IMT v1.05
U53: 2 x WPF 52 | AB53: 2 x WPF 40

Sheet Ausdruck (hidden)
B1: =Translation!A4 -> WWK vs Hot water cylinders
AA2: =RIGHT(Auslegung!AE41,FIND(" ",Auslegung!AE41)+1) -> v1.05
B4: =Translation!A113 -> Eingabewerte
B6: =Translation!A104 -> Entnahmestellen | J6: =Translation!A105 -> Nutzungshäufigkeit
B7: =Translation!$A$6 -> Bath tub | J7: =Berechnung!A5 -> 2 x per week
B8: =Translation!$A$7 -> Shower | J8: =Berechnung!C5 -> 15 x per week
B9: =Translation!$A$8 -> Basin | J9: =Berechnung!E5 -> 8 x per day
B10: =Translation!$A$9 -> Kitchen sink | J10: =Berechnung!G5 -> 4 x per day
B11: =Translation!$A$10 -> Handwash sink | J11: =Berechnung!I5 -> 3 x per day
B13: =Translation!A106 -> Warmwasser-Wärmepumpe
B14: =Translation!A41 -> Type of heat pump | G14: Stiebel Eltron GmbH & Co. KG | J14: =Berechnung!C61 -> WWK 220 electronic
B15: =Translation!A42 -> Yearly COP | G15: Dr.-Stiebel-Straße | J15: =FIXED(Berechnung!C62,2) -> 3,20
B16: =Translation!A43 -> Heat losses [kWh/day] | G16: 37603 Holzminden | J16: =Berechnung!C63 -> 0.79
B17: =Translation!A44 -> Investment costs [€] | G17: 05531 / 702 110 | J17: =Berechnung!C64 -> 2350
B18: =Translation!A45 -> Installation costs [€] | J18: =Berechnung!C65 -> 350
B52: =Translation!A113 -> Eingabewerte
B54: =Translation!A107 -> Warmwassererzeugung
B55: =Translation!A46 -> Heat generator | J55: =Berechnung!C77 -> El. Cylinder SHW 200 S
B56: =Translation!A22 -> DHW cylinder is broken? | J56: =Berechnung!Q5 -> Replacement is not required
B57: =Translation!A43 -> Heat losses [kWh/day] | J57: =Berechnung!C79 -> 1.2
B58: =Translation!A44 -> Investment costs [€] | J58: =Berechnung!C80 -> 0
B59: =Translation!A45 -> Installation costs [€] | J59: =Berechnung!C81 -> 0
B60: =Berechnung!A83 -> Speichertemperatur | J60: =Berechnung!C83&" °C" -> 55 °C
B62: =Translation!A112 -> Standspeicher
B63: =Berechnung!A84 -> Energieträger für Vergleich | J63: =IF(Berechnung!C84=1,Translation!A108,IF(Berechnung!C84=2,Translation!A109,IF(Berechnung!C84=3,Translation!A110,Translation!A111))) -> Strom
B64: =Berechnung!A86 -> E-Preis-Vergleich | J64: =Berechnung!C86&" Ct/kWh" -> 27 Ct/kWh
B65: =Berechnung!A87 -> Wirkungsgrad WWB Vergleich | J65: =Berechnung!C87 -> 1
B66: =Berechnung!A88 -> Preissteigerung Vergleich | J66: =Berechnung!C88&" "&Translation!A85 -> 3 % per year
B67: =Berechnung!A85 -> CO2-Vergleich | J67: =Berechnung!C85&" g/kWh" -> 621 g/kWh
B102: =Translation!A18 -> Energy demand
B152: =Translation!A19 -> Energy costs
B202: =Translation!A47 -> Amortization
B252: =Translation!A55 -> Return on capital
B302: =Translation!A114 -> Legal note
B304: =Translation!A115 -> Stiebel Eltron shall not provide any guarantees that the information, values and data provided, or values, information and recommendations determined with the aid or on the basis of such information, values and data, are complete, accurate, correct or current in every respect. Stiebel Eltron shall reserve the right to make changes to the data, values and information provided at any time and without prior notification. Errors excepted. Subject to changes. None of the information, values and data provided or the values, information and recommendations determined with the aid or on the basis of such information, values and data constitutes any basis for a financial decision or for any other purpose, but rather is merely initial non-binding information as an initial guide. Under no circumstances should the following design tool be considered a substitute for consultation with Stiebel Eltron or another authorised expert engineer. Please contact Stiebel Eltron or another authorised expert engineer in relation to specific project design. Stiebel Eltron shall accept no liability for losses of any kind that may arise from the use of information, values and data provided, or values, information and recommendations determined with the aid or on the basis of such information, values and data. This exclusion of liability shall not apply if the loss is due to intent or gross negligence on the part of Stiebel Eltron or in the event of a fatality, physical injury or damage to health.

Sheet Einstellungen (hidden)
C7: =Translation!A70 -> Options
I8: Text Übersetzung "Wirklich zurücksetzen ?"
C10: =Translation!A77 -> Up-time DHW | D10: 49 | E10: =Translation!A81 -> Weeks/year | I10: =Translation!A92 -> Restore to standard values ?
C12: =Translation!A82 -> Cold water temperature | D12: 10 | E12: °C | I12: =Translation!A70 -> Options
C14: =Translation!A78 -> CO2-emmision electricity | D14: 621 | E14: g/kWh
C16: =Translation!A79 -> CO2-emmision oil | D16: 321 | E16: g/kWh
C18: =Translation!A80 -> CO2-emmision gas | D18: 253 | E18: g/kWh
C20: =Translation!A86 -> Heat loss of hot water distribution | D20: 10 | E20: %
C22: =Translation!A94 -> Share integrated electric heater heat pump | D22: 2 | E22: %
C24: =Translation!A95 -> Interest rate of the bank-investments | D24: 2.5 | E24: =Translation!A85 -> % per year
C29: =Translation!$A$87 -> Medium volume flow | D29: 10 | E29: =Translation!$A$90 -> Liter/min
C31: =Translation!$A$88 -> Time of tapping | D31: 12 | E31: =Translation!$A$91 -> min
C33: =Translation!$A$89 -> Draw-off temperature | D33: 40 | E33: °C
C38: =Translation!$A$87 -> Medium volume flow | D38: 8 | E38: =Translation!$A$90 -> Liter/min
C40: =Translation!$A$88 -> Time of tapping | D40: 6 | E40: =Translation!$A$91 -> min
C42: =Translation!$A$89 -> Draw-off temperature | D42: 38 | E42: °C
C47: =Translation!$A$87 -> Medium volume flow | D47: 4 | E47: =Translation!$A$90 -> Liter/min
C49: =Translation!$A$88 -> Time of tapping | D49: 0.5 | E49: =Translation!$A$91 -> min
C51: =Translation!$A$89 -> Draw-off temperature | D51: 40 | E51: °C
C56: =Translation!$A$87 -> Medium volume flow | D56: 4 | E56: =Translation!$A$90 -> Liter/min
C58: =Translation!$A$88 -> Time of tapping | D58: 0.5 | E58: =Translation!$A$91 -> min
C60: =Translation!$A$89 -> Draw-off temperature | D60: 50 | E60: °C
C65: =Translation!$A$87 -> Medium volume flow | D65: 2 | E65: =Translation!$A$90 -> Liter/min
C67: =Translation!$A$88 -> Time of tapping | D67: 0.5 | E67: =Translation!$A$91 -> min
C69: =Translation!$A$89 -> Draw-off temperature | D69: 40 | E69: °C
C74: =Translation!A74 -> Electricity price | D74: 27 | E74: =Translation!$A$93 -> Ct/kWh
C76: =Translation!A75 -> Oil price | D76: 8.5 | E76: =Translation!$A$93 -> Ct/kWh
C78: =Translation!A76 -> Gas price | D78: 7.5 | E78: =Translation!$A$93 -> Ct/kWh
C80: =Translation!A83 -> Electricity price increase | D80: 3 | E80: =Translation!$A$85 -> % per year
C82: =Translation!A84 -> Price increase Oil/Gas | D82: 5 | E82: =Translation!$A$85 -> % per year
C87: =Translation!A102 -> Annual yields of solar thermal system | D87: 950 | E87: kWh / KWp
C89: =Translation!A98 -> Own consumption | D89: 40 | E89: %
C91: =Translation!A100 -> Electricity demand household | D91: 4000 | E91: =Translation!A27 -> kWh/year
C93: =Translation!A101 -> Feed-in remuneration | D93: 12.9 | E93: =Translation!A93 -> Ct/kWh

Sheet Berechnung (hidden)
A1: VBA-Zugriff
A2: Comboboxen
A3: Badewanne | C3: Dusche | E3: Badwaschbecken | G3: Küchenspüle | I3: Handwaschbecken | K3: Sprachen | Q3: Speicher defekt ?
A5: 2 x per week | B5: =VLOOKUP(A5,A6:B50,2,FALSE) -> 2 | C5: 15 x per week | D5: =VLOOKUP(C5,C6:D50,2,FALSE) -> 15 | E5: 8 x per day | F5: =VLOOKUP(E5,E6:F50,2,FALSE)*7 -> 56 | G5: 4 x per day | H5: =VLOOKUP(G5,G6:H50,2,FALSE)*7 -> 28 | I5: 3 x per day | J5: =VLOOKUP(I5,I6:J50,2,FALSE)*7 -> 21 | K5: 2 | L5: =VLOOKUP(K5,K7:L49,2,FALSE) -> English Int | Q5: Replacement is not required | R5: =IF(Q5=Q7,TRUE,FALSE) -> FALSE
A7: =Translation!A13 -> No bath tub | B7: 0 | C7: =Translation!A14 -> No shower | D7: 0 | E7: =Translation!A15 -> No basin | F7: 0 | G7: =Translation!A16 -> No kitchen sink | H7: 0 | I7: =Translation!A17 -> No handw. sink | J7: 0 | K7: 1 | L7: Deutsch | Q7: =Translation!A23 -> Replacement is required
A8: =B8&" x "&Translation!$A$11 -> 1 x per week | B8: 1 | C8: =D8&" x "&Translation!$A$11 -> 1 x per week | D8: 1 | E8: =F8&" x "&Translation!$A$12 -> 1 x per day | F8: 1 | G8: =H8&" x "&Translation!$A$12 -> 1 x per day | H8: 1 | I8: =J8&" x "&Translation!$A$12 -> 1 x per day | J8: 1 | K8: 2 | L8: English Int | Q8: =Translation!A24 -> Replacement is not required
A9: =B9&" x "&Translation!$A$11 -> 2 x per week | B9: 2 | C9: =D9&" x "&Translation!$A$11 -> 2 x per week | D9: 2 | E9: =F9&" x "&Translation!$A$12 -> 2 x per day | F9: 2 | G9: =H9&" x "&Translation!$A$12 -> 2 x per day | H9: 2 | I9: =J9&" x "&Translation!$A$12 -> 2 x per day | J9: 2 | K9: 3 | L9: English UK
A10: =B10&" x "&Translation!$A$11 -> 3 x per week | B10: 3 | C10: =D10&" x "&Translation!$A$11 -> 3 x per week | D10: 3 | E10: =F10&" x "&Translation!$A$12 -> 3 x per day | F10: 3 | G10: =H10&" x "&Translation!$A$12 -> 3 x per day | H10: 3 | I10: =J10&" x "&Translation!$A$12 -> 3 x per day | J10: 3 | K10: 4 | L10: Nederlands
A11: =B11&" x "&Translation!$A$11 -> 4 x per week | B11: 4 | C11: =D11&" x "&Translation!$A$11 -> 4 x per week | D11: 4 | E11: =F11&" x "&Translation!$A$12 -> 4 x per day | F11: 4 | G11: =H11&" x "&Translation!$A$12 -> 4 x per day | H11: 4 | I11: =J11&" x "&Translation!$A$12 -> 4 x per day | J11: 4 | K11: 5 | L11: Francais
A12: =B12&" x "&Translation!$A$11 -> 5 x per week | B12: 5 | C12: =D12&" x "&Translation!$A$11 -> 5 x per week | D12: 5 | E12: =F12&" x "&Translation!$A$12 -> 5 x per day | F12: 5 | G12: =H12&" x "&Translation!$A$12 -> 5 x per day | H12: 5 | I12: =J12&" x "&Translation!$A$12 -> 5 x per day | J12: 5
A13: =B13&" x "&Translation!$A$11 -> 6 x per week | B13: 6 | C13: =D13&" x "&Translation!$A$11 -> 6 x per week | D13: 6 | E13: =F13&" x "&Translation!$A$12 -> 6 x per day | F13: 6 | G13: =H13&" x "&Translation!$A$12 -> 6 x per day | H13: 6 | I13: =J13&" x "&Translation!$A$12 -> 6 x per day | J13: 6
A14: =B14&" x "&Translation!$A$11 -> 7 x per week | B14: 7 | C14: =D14&" x "&Translation!$A$11 -> 7 x per week | D14: 7 | E14: =F14&" x "&Translation!$A$12 -> 7 x per day | F14: 7 | G14: =H14&" x "&Translation!$A$12 -> 7 x per day | H14: 7 | I14: =J14&" x "&Translation!$A$12 -> 7 x per day | J14: 7
A15: =B15&" x "&Translation!$A$11 -> 8 x per week | B15: 8 | C15: =D15&" x "&Translation!$A$11 -> 8 x per week | D15: 8 | E15: =F15&" x "&Translation!$A$12 -> 8 x per day | F15: 8 | G15: =H15&" x "&Translation!$A$12 -> 8 x per day | H15: 8 | I15: =J15&" x "&Translation!$A$12 -> 8 x per day | J15: 8
A16: =B16&" x "&Translation!$A$11 -> 9 x per week | B16: 9 | C16: =D16&" x "&Translation!$A$11 -> 9 x per week | D16: 9 | E16: =F16&" x "&Translation!$A$12 -> 9 x per day | F16: 9 | G16: =H16&" x "&Translation!$A$12 -> 9 x per day | H16: 9 | I16: =J16&" x "&Translation!$A$12 -> 9 x per day | J16: 9
A17: =B17&" x "&Translation!$A$11 -> 10 x per week | B17: 10 | C17: =D17&" x "&Translation!$A$11 -> 10 x per week | D17: 10 | E17: =F17&" x "&Translation!$A$12 -> 10 x per day | F17: 10 | G17: =H17&" x "&Translation!$A$12 -> 10 x per day | H17: 10 | I17: =J17&" x "&Translation!$A$12 -> 10 x per day | J17: 10
A18: =B18&" x "&Translation!$A$11 -> 11 x per week | B18: 11 | C18: =D18&" x "&Translation!$A$11 -> 11 x per week | D18: 11 | E18: =F18&" x "&Translation!$A$12 -> 11 x per day | F18: 11 | G18: =H18&" x "&Translation!$A$12 -> 11 x per day | H18: 11 | I18: =J18&" x "&Translation!$A$12 -> 11 x per day | J18: 11
A19: =B19&" x "&Translation!$A$11 -> 12 x per week | B19: 12 | C19: =D19&" x "&Translation!$A$11 -> 12 x per week | D19: 12 | E19: =F19&" x "&Translation!$A$12 -> 12 x per day | F19: 12 | G19: =H19&" x "&Translation!$A$12 -> 12 x per day | H19: 12 | I19: =J19&" x "&Translation!$A$12 -> 12 x per day | J19: 12
A20: =B20&" x "&Translation!$A$11 -> 13 x per week | B20: 13 | C20: =D20&" x "&Translation!$A$11 -> 13 x per week | D20: 13 | E20: =F20&" x "&Translation!$A$12 -> 13 x per day | F20: 13 | G20: =H20&" x "&Translation!$A$12 -> 13 x per day | H20: 13 | I20: =J20&" x "&Translation!$A$12 -> 13 x per day | J20: 13
A21: =B21&" x "&Translation!$A$11 -> 14 x per week | B21: 14 | C21: =D21&" x "&Translation!$A$11 -> 14 x per week | D21: 14 | E21: =F21&" x "&Translation!$A$12 -> 14 x per day | F21: 14 | G21: =H21&" x "&Translation!$A$12 -> 14 x per day | H21: 14 | I21: =J21&" x "&Translation!$A$12 -> 14 x per day | J21: 14
A22: =B22&" x "&Translation!$A$11 -> 15 x per week | B22: 15 | C22: =D22&" x "&Translation!$A$11 -> 15 x per week | D22: 15 | E22: =F22&" x "&Translation!$A$12 -> 15 x per day | F22: 15 | G22: =H22&" x "&Translation!$A$12 -> 15 x per day | H22: 15 | I22: =J22&" x "&Translation!$A$12 -> 15 x per day | J22: 15
A23: =B23&" x "&Translation!$A$11 -> 16 x per week | B23: 16 | C23: =D23&" x "&Translation!$A$11 -> 16 x per week | D23: 16 | E23: =F23&" x "&Translation!$A$12 -> 16 x per day | F23: 16 | G23: =H23&" x "&Translation!$A$12 -> 16 x per day | H23: 16 | I23: =J23&" x "&Translation!$A$12 -> 16 x per day | J23: 16
A24: =B24&" x "&Translation!$A$11 -> 17 x per week | B24: 17 | C24: =D24&" x "&Translation!$A$11 -> 17 x per week | D24: 17 | E24: =F24&" x "&Translation!$A$12 -> 17 x per day | F24: 17 | G24: =H24&" x "&Translation!$A$12 -> 17 x per day | H24: 17 | I24: =J24&" x "&Translation!$A$12 -> 17 x per day | J24: 17
A25: =B25&" x "&Translation!$A$11 -> 18 x per week | B25: 18 | C25: =D25&" x "&Translation!$A$11 -> 18 x per week | D25: 18 | E25: =F25&" x "&Translation!$A$12 -> 18 x per day | F25: 18 | G25: =H25&" x "&Translation!$A$12 -> 18 x per day | H25: 18 | I25: =J25&" x "&Translation!$A$12 -> 18 x per day | J25: 18
A26: =B26&" x "&Translation!$A$11 -> 19 x per week | B26: 19 | C26: =D26&" x "&Translation!$A$11 -> 19 x per week | D26: 19 | E26: =F26&" x "&Translation!$A$12 -> 19 x per day | F26: 19 | G26: =H26&" x "&Translation!$A$12 -> 19 x per day | H26: 19 | I26: =J26&" x "&Translation!$A$12 -> 19 x per day | J26: 19
A27: =B27&" x "&Translation!$A$11 -> 20 x per week | B27: 20 | C27: =D27&" x "&Translation!$A$11 -> 20 x per week | D27: 20 | E27: =F27&" x "&Translation!$A$12 -> 20 x per day | F27: 20 | G27: =H27&" x "&Translation!$A$12 -> 20 x per day | H27: 20 | I27: =J27&" x "&Translation!$A$12 -> 20 x per day | J27: 20
A28: =B28&" x "&Translation!$A$11 -> 21 x per week | B28: 21 | C28: =D28&" x "&Translation!$A$11 -> 21 x per week | D28: 21 | E28: =F28&" x "&Translation!$A$12 -> 21 x per day | F28: 21 | G28: =H28&" x "&Translation!$A$12 -> 21 x per day | H28: 21 | I28: =J28&" x "&Translation!$A$12 -> 21 x per day | J28: 21
A29: =B29&" x "&Translation!$A$11 -> 22 x per week | B29: 22 | C29: =D29&" x "&Translation!$A$11 -> 22 x per week | D29: 22 | E29: =F29&" x "&Translation!$A$12 -> 22 x per day | F29: 22 | G29: =H29&" x "&Translation!$A$12 -> 22 x per day | H29: 22 | I29: =J29&" x "&Translation!$A$12 -> 22 x per day | J29: 22
A30: =B30&" x "&Translation!$A$11 -> 23 x per week | B30: 23 | C30: =D30&" x "&Translation!$A$11 -> 23 x per week | D30: 23 | E30: =F30&" x "&Translation!$A$12 -> 23 x per day | F30: 23 | G30: =H30&" x "&Translation!$A$12 -> 23 x per day | H30: 23 | I30: =J30&" x "&Translation!$A$12 -> 23 x per day | J30: 23
A31: =B31&" x "&Translation!$A$11 -> 24 x per week | B31: 24 | C31: =D31&" x "&Translation!$A$11 -> 24 x per week | D31: 24 | E31: =F31&" x "&Translation!$A$12 -> 24 x per day | F31: 24 | G31: =H31&" x "&Translation!$A$12 -> 24 x per day | H31: 24 | I31: =J31&" x "&Translation!$A$12 -> 24 x per day | J31: 24
A32: =B32&" x "&Translation!$A$11 -> 25 x per week | B32: 25 | C32: =D32&" x "&Translation!$A$11 -> 25 x per week | D32: 25 | E32: =F32&" x "&Translation!$A$12 -> 25 x per day | F32: 25 | G32: =H32&" x "&Translation!$A$12 -> 25 x per day | H32: 25 | I32: =J32&" x "&Translation!$A$12 -> 25 x per day | J32: 25
A33: =B33&" x "&Translation!$A$11 -> 26 x per week | B33: 26 | C33: =D33&" x "&Translation!$A$11 -> 26 x per week | D33: 26 | E33: =F33&" x "&Translation!$A$12 -> 26 x per day | F33: 26 | G33: =H33&" x "&Translation!$A$12 -> 26 x per day | H33: 26 | I33: =J33&" x "&Translation!$A$12 -> 26 x per day | J33: 26
A34: =B34&" x "&Translation!$A$11 -> 27 x per week | B34: 27 | C34: =D34&" x "&Translation!$A$11 -> 27 x per week | D34: 27 | E34: =F34&" x "&Translation!$A$12 -> 27 x per day | F34: 27 | G34: =H34&" x "&Translation!$A$12 -> 27 x per day | H34: 27 | I34: =J34&" x "&Translation!$A$12 -> 27 x per day | J34: 27
A35: =B35&" x "&Translation!$A$11 -> 28 x per week | B35: 28 | C35: =D35&" x "&Translation!$A$11 -> 28 x per week | D35: 28 | E35: =F35&" x "&Translation!$A$12 -> 28 x per day | F35: 28 | G35: =H35&" x "&Translation!$A$12 -> 28 x per day | H35: 28 | I35: =J35&" x "&Translation!$A$12 -> 28 x per day | J35: 28
A36: =B36&" x "&Translation!$A$11 -> 29 x per week | B36: 29 | C36: =D36&" x "&Translation!$A$11 -> 29 x per week | D36: 29 | E36: =F36&" x "&Translation!$A$12 -> 29 x per day | F36: 29 | G36: =H36&" x "&Translation!$A$12 -> 29 x per day | H36: 29 | I36: =J36&" x "&Translation!$A$12 -> 29 x per day | J36: 29
A37: =B37&" x "&Translation!$A$11 -> 30 x per week | B37: 30 | C37: =D37&" x "&Translation!$A$11 -> 30 x per week | D37: 30 | E37: =F37&" x "&Translation!$A$12 -> 30 x per day | F37: 30 | G37: =H37&" x "&Translation!$A$12 -> 30 x per day | H37: 30 | I37: =J37&" x "&Translation!$A$12 -> 30 x per day | J37: 30
A38: =B38&" x "&Translation!$A$11 -> 35 x per week | B38: 35 | C38: =D38&" x "&Translation!$A$11 -> 35 x per week | D38: 35
A39: =B39&" x "&Translation!$A$11 -> 40 x per week | B39: 40 | C39: =D39&" x "&Translation!$A$11 -> 40 x per week | D39: 40
A40: =B40&" x "&Translation!$A$11 -> 45 x per week | B40: 45 | C40: =D40&" x "&Translation!$A$11 -> 45 x per week | D40: 45
A41: =B41&" x "&Translation!$A$11 -> 50 x per week | B41: 50 | C41: =D41&" x "&Translation!$A$11 -> 50 x per week | D41: 50
A60: Rechenwerte | H60: Berechnung (Wärme)-Energiebedarf
A61: Typ WP | C61: WWK 220 electronic | H61: Entnahmestelle | J61: Volumen | O61: Temperatur | Q61: Energie
A62: JAZ WP | C62: =VLOOKUP($C$61,Leistungsdaten!$A:$M,2,FALSE) -> 3.2 | H62: Typ | J62: Frequenz | K62: Durchfluss | L62: Dauer | M62: Zeitraum | N62: Zapfmenge | O62: Kaltwasser | P62: Zapfung | Q62: Verteilverluste | R62: Pro Jahr
A63: Wärmeverlust WP | C63: =VLOOKUP($C$61,Leistungsdaten!$A:$M,3,FALSE) -> 0.79 | H63: - | J63: pro Woche | K63: l/min | L63: min/Zapfung | M63: Wochen/Jahr | N63: Liter/Jahr | O63: °C | P63: °C | Q63: % | R63: kWh/a
A64: Preis WP | C64: =ROUND(VLOOKUP($C$61,Leistungsdaten!$A:$M,4,FALSE),0) -> 2350 | H64: =Auslegung!C7 -> Bath tub | J64: =B5 -> 2 | K64: =Einstellungen!D29 -> 10 | L64: =Einstellungen!D31 -> 12 | M64: =Einstellungen!D10 -> 49 | N64: =J64*K64*L64*M64 -> 11760 | O64: =Einstellungen!D12 -> 10 | P64: =Einstellungen!D33 -> 40 | Q64: =Einstellungen!D20 -> 10 | R64: =(1+Q64/100)*(N64*1.163*(P64-O64)/1000) -> 451.33704
A65: Installation WP | C65: =VLOOKUP($C$61,Leistungsdaten!$A:$M,5,FALSE) -> 350 | H65: =Auslegung!C9 -> Shower | J65: =D5 -> 15 | K65: =Einstellungen!D38 -> 8 | L65: =Einstellungen!D40 -> 6 | M65: =M64 -> 49 | N65: =J65*K65*L65*M65 -> 35280 | O65: =O64 -> 10 | P65: =Einstellungen!D42 -> 38 | Q65: =Q64 -> 10 | R65: =(1+Q65/100)*(N65*1.163*(P65-O65)/1000) -> 1263.743712
A66: PDF-DE WP | C66: ="http://www.stiebel-eltron.de/services/productproxy/ste/"&Translation!A3&".pdf?productnr="&TEXT(VLOOKUP(C61,Leistungsdaten!A:L,12,FALSE),"000000") -> http://www.stiebel-eltron.de/services/productproxy/ste/de/en.pdf?productnr=231208 | H66: =Auslegung!C11 -> Basin | J66: =F5 -> 56 | K66: =Einstellungen!D47 -> 4 | L66: =Einstellungen!D49 -> 0.5 | M66: =M65 -> 49 | N66: 5488 | O66: =O65 -> 10 | P66: =Einstellungen!D51 -> 40 | Q66: =Q65 -> 10 | R66: =(1+Q66/100)*(N66*1.163*(P66-O66)/1000) -> 210.623952
A67: Speichertemperatur | C67: =VLOOKUP($C$61,Leistungsdaten!$A:$N,6,FALSE) -> 55 | H67: =Auslegung!C13 -> Kitchen sink | J67: =H5 -> 28 | K67: =Einstellungen!D56 -> 4 | L67: =Einstellungen!D58 -> 0.5 | M67: 49 | N67: 2744 | O67: 10 | P67: =Einstellungen!D60 -> 50 | Q67: 10 | R67: =(1+Q67/100)*(N67*1.163*(P67-O67)/1000) -> 140.415968
A68: Platzhalter | H68: =Auslegung!C15 -> Handwash sink | J68: =J5 -> 21 | K68: =Einstellungen!D65 -> 2 | L68: =Einstellungen!D67 -> 0.5 | M68: 49 | N68: 1029 | O68: 10 | P68: =Einstellungen!D69 -> 40 | Q68: 10 | R68: =(1+Q68/100)*(N68*1.163*(P68-O68)/1000) -> 39.491991
A69: Platzhalter
A70: Platzhalter
A71: Platzhalter
A72: Platzhalter
A73: Platzhalter
A74: Platzhalter
A75: Platzhalter
A76: Platzhalter
A77: Typ Speicher | C77: El. Cylinder SHW 200 S | H77: Summe | K77: =MAX(J65*K65,J66*K66,J67*K67,J68*K68) -> 224 | N77: =SUM(N64:N76) -> 56301 | R77: =SUM(R64:R76) -> 2105.612663
A78: Speicher defekt? | C78: =R5 -> FALSE
A79: Wärmeverlust Speicher | C79: =(1-0.1*(65-C83)/5)*VLOOKUP($C$77,Leistungsdaten!$A:$M,3,FALSE) -> 1.2
A80: Preis Speicher | C80: =IF(C78=TRUE,ROUND(VLOOKUP($C$77,Leistungsdaten!$A:$M,4,FALSE),0),0) -> 0
A81: Installation Speicher | C81: =IF(C78=TRUE,VLOOKUP($C$77,Leistungsdaten!$A:$M,5,FALSE),0) -> 0
A82: PDF-DE Speicher | C82: ="http://www.stiebel-eltron.de/services/productproxy/ste/"&Translation!A3&".pdf?productnr="&TEXT(VLOOKUP(C77,Leistungsdaten!A:L,12,FALSE),"000000") -> http://www.stiebel-eltron.de/services/productproxy/ste/de/en.pdf?productnr=182120
A83: Speichertemperatur | C83: =VLOOKUP($C$77,Leistungsdaten!$A:$N,6,FALSE) -> 55
A84: Energieträger für Vergleich | C84: =VLOOKUP($C$77,Leistungsdaten!$A:$M,7,FALSE) -> 1
A85: CO2-Vergleich | C85: =IF(C84=1,Einstellungen!D14,IF(C84=2,Einstellungen!D16,Einstellungen!D18)) -> 621
A86: E-Preis-Vergleich | C86: =IF(C84=1,Einstellungen!D74,IF(C84=2,Einstellungen!D76,Einstellungen!D78)) -> 27
A87: Wirkungsgrad WWB Vergleich | C87: =VLOOKUP($C$77,Leistungsdaten!$A:$M,2,FALSE) -> 1
A88: Preissteigerung Vergleich | C88: =IF(C84=1,Einstellungen!D80,Einstellungen!D82) -> 3
A90: WWK mit Solar ? | C90: =VLOOKUP($C$61,Leistungsdaten!$A:$M,7,FALSE) -> 1
H91: Berechnung Endenergiebedarf | Q91: Anzeige Ergebnisse
H92: Wert | J92: Wärmepumpe | L92: Speicher | Q92: Textbox | R92: Energiebedarf | S92: Energiekosten | T92: Amortisation | U92: Rendite | V92: Klimadaten
Q93: Wert 1 | R93: =Translation!$A$25&" "&$C$61&": "&FIXED(J97,0)&" "&Translation!$A$27 -> Electricity requirement WWK 220 electronic: 734 kWh/year | S93: =Translation!$A$33&" "&$C$61&": "&FIXED(J98,0)&" "&Translation!$A$35 -> Energy costs WWK 220 electronic: 198 €/year | T93: =Translation!A47&" "&C61&": "&Berechnung!J104& " "&Translation!A49 -> Amortization WWK 220 electronic: 5,2 Years | U93: =Translation!A54&": "&FIXED(J103,1)&" %" -> Return on capital employed: 10,7 %
A94: Versionsnummer | C94: =RIGHT(Auslegung!AE41,5) -> v1.05 | H94: Bereitschaftsverlust | J94: =Auslegung!H23*365 -> 288.35 | L94: =Auslegung!H35*365 -> 438 | N94: kWh/Jahr | Q94: Wert 2 | R94: =Translation!$A$28&": "&ROUND(Berechnung!J96,0)&" "&Translation!$A$27&" | "&Translation!$A$29&": "&ROUND(Berechnung!J100,1)&" "&Translation!$A$32&" | "&Translation!$A$30&": "&ROUND(Berechnung!J99,0)&" "&Translation!$A$31 -> Heat: 2394 kWh/year | Water: 56,3 m³/year | CO2: 456 kg/year | S94: =Translation!$A$36&": "&FIXED(Berechnung!J119,0)&" "&Translation!$A$37&" | "&Translation!A38&": "&FIXED(Berechnung!L119-Berechnung!J119,0)&" "&Translation!A37 -> Energy costs in 10 Years: 2.272 € | Savings resulting in 10 Years: 5.602 € | T94: =Translation!A51&" "&C61&" "&FIXED(J101+J102,0)&": "&Translation!A37 &" | "&C77&": "&FIXED(L101+L102,0)&" "&Translation!A37 -> One-off costs WWK 220 electronic 2.700: € | El. Cylinder SHW 200 S: 0 € | U94: =Translation!A56&": "&FIXED(Berechnung!J101+Berechnung!J102,0)&" "&Translation!A37&" | "&Translation!A57&": "&FIXED(L140/10,0)&" "&Translation!A35 -> Invested capital: 2.700 € | Medium income: 560 €/year
H95: Wärmeenergiebedarf | J95: =R77 -> 2105.612663 | L95: =R77 -> 2105.612663 | N95: kWh/Jahr | Q95: Wert 3 | R95: =IF(C84=1,Translation!A25,Translation!A68)&" "&$C$77&": "&ROUND(L97,0)&" "&Translation!$A$27 -> Electricity requirement El. Cylinder SHW 200 S: 2544 kWh/year | S95: =Translation!$A$33&" "&$C$77&": "&ROUND(L98,0)&" "&Translation!$A$35 -> Energy costs El. Cylinder SHW 200 S: 687 €/year | T95: =Translation!A50&": "&FIXED(Berechnung!J140,0)& " "&Translation!A37 -> Yield with heat pump in 10 years: 2.902 € | U95: =Translation!A58&" "&C61&": "&FIXED(J106,0)&" "&Translation!A37 -> Capital gains WWK 220 electronic: 2.145 €
H96: Gesamtenergiebedarf | J96: =J94+J95 -> 2393.962663 | L96: =L94+L95 -> 2543.612663 | N96: kWh/Jahr | Q96: Wert 4 | R96: =Translation!$A$28&": "&ROUND(Berechnung!L96,0)&" "&Translation!$A$27&" | "&Translation!$A$29&": "&ROUND(Berechnung!L100,1)&" "&Translation!$A$32&" | "&Translation!$A$30&": "&ROUND(Berechnung!L99,0)&" "&Translation!$A$31 -> Heat: 2544 kWh/year | Water: 56,3 m³/year | CO2: 1580 kg/year | S96: =Translation!$A$36&": "&FIXED(Berechnung!L119,0)&" "&Translation!$A$37 -> Energy costs in 10 Years: 7.873 € | U96: =Translation!A59&": "&FIXED(J105,0)&" "&Translation!A37&" | "&Translation!A53&": "&FIXED(L140,0)&" "&Translation!A37 -> Miss interest rates: 756 € | Energy cost savings: 5.602 €
H97: Endenergiebedarf | J97: =J96*(Einstellungen!$D$22/100)+(J96*(100-Einstellungen!$D$22)/100)/Auslegung!H21+J173-J168 -> 733.8685544 | L97: =L96/C87+L173 -> 2543.612663 | N97: kWh/Jahr | Q97: Wert 5 | S97: =Translation!$A$74&": "&FIXED(Einstellungen!D74,1)&" "&Translation!A93&" | "&Translation!A83&": "&Einstellungen!D80&" "&Translation!A85 -> Electricity price: 27,0 Ct/kWh | Electricity price increase: 3 % per year | T97: =Translation!A52&": "&FIXED(J129,0)&" "&Translation!A37&" | "&Translation!A53&": "&FIXED(L140,0)&" "&Translation!A37 -> Repeated costs: 2.700 € | Energy cost savings: 5.602 € | U97: =Translation!A61&" | "&Translation!A62&" "&FIXED(Einstellungen!D24,1)&" "&Translation!A85 -> Period under consideration of 10 years | Interest rate of the bank 2,5 % per year
H98: Stromkosten | J98: =J97*Einstellungen!$D$74/100-J175 -> 198.1445097 | L98: =(L96/C87)*C86/100+L174 -> 686.775419 | N98: €/Jahr | Q98: Wert 6
H99: CO2-Emission | J99: =(J97+J173-J172-J171)*Einstellungen!$D$14/1000 -> 455.7323723 | L99: =(L96/C87)*C85/1000+L173*Einstellungen!$D$14/1000 -> 1579.583464 | N99: kg CO2 / Jahr | Q99: Wert 7
H100: Wasserverbrauch | J100: =N77/1000 -> 56.301 | L100: =N77/1000 -> 56.301 | N100: m³/Jahr | Q100: Wert 8
H101: Investitionskosten | J101: =Auslegung!H25 -> 2350 | L101: =Auslegung!H37 -> 0 | N101: € | Q101: Wert 9
H102: Installationskosten | J102: =Auslegung!H27 -> 350 | L102: =Auslegung!H39 -> 0 | N102: € | Q102: Wert 10
H103: Verzinsung | J103: =100*(L140-(J101+J102))/(J101+J102)/10 -> 10.74668805 | N103: % pro Jahr | Q103: Legende 1 | R103: =$C$61 -> WWK 220 electronic | S103: =$C$61 -> WWK 220 electronic | T103: =Translation!A47 -> Amortization | U103: =C61 -> WWK 220 electronic
H104: Amortisation | J104: =IF(ISERROR(-1*L144/J144),"> 10",FIXED(-1*L144/J144,1)) -> 5,2 | N104: Jahre | Q104: Legende 2 | R104: =$C$77 -> El. Cylinder SHW 200 S | S104: =$C$77 -> El. Cylinder SHW 200 S | U104: =Translation!A64 -> Funds in the bank
H105: Zinsen auf der Bank | J105: =J129*(1+Einstellungen!$D$24/100)^10-J129 -> 756.2282693 | N105: € in 10 Jahren | Q105: Legende 3
H106: Kapitaltalertrag 10 Jahre | J106: =L161-J161 -> 2145.377503 | N106: € | Q106: Legende 4
Q107: Legende 5
H108: Energiekostenentwicklung | Q108: Legende 6
H109: 1 | J109: =J98 -> 198.1445097 | L109: =L98 -> 686.775419 | Q109: Legende 7
H110: 2 | J110: =J109*(1+Einstellungen!$D$80/100) -> 204.088845 | L110: =L109*(1+$C$88/100) -> 707.3786816 | Q110: Legende 8
H111: 3 | J111: =J110*(1+Einstellungen!$D$80/100) -> 210.2115103 | L111: =L110*(1+$C$88/100) -> 728.600042 | Q111: Legende 9
H112: 4 | J112: =J111*(1+Einstellungen!$D$80/100) -> 216.5178556 | L112: 750.4580433 | Q112: Legende 10
H113: 5 | J113: =J112*(1+Einstellungen!$D$80/100) -> 223.0133913 | L113: 772.9717846 | Q113: Legende 11
H114: 6 | J114: =J113*(1+Einstellungen!$D$80/100) -> 229.703793 | L114: 796.1609381 | Q114: Legende 12
H115: 7 | J115: =J114*(1+Einstellungen!$D$80/100) -> 236.5949068 | L115: 820.0457663 | Q115: Legende 13
H116: 8 | J116: =J115*(1+Einstellungen!$D$80/100) -> 243.692754 | L116: 844.6471393 | Q116: Legende 14
H117: 9 | J117: =J116*(1+Einstellungen!$D$80/100) -> 251.0035366 | L117: 869.9865534 | Q117: Legende 15
H118: 10 | J118: =J117*(1+Einstellungen!$D$80/100) -> 258.5336427 | L118: 896.08615
H119: Summe 10 Jahre | J119: =SUM(J109:K118) -> 2271.504745 | L119: =SUM(L109:M118) -> 7873.110518
H128: Amortisation | J128: Offenener Betrag | L128: Einsparung | N128: Amortisation ?
H129: 0 | J129: =IF(C78=TRUE,((J101+J102)-(L101+L102)),J101+J102) -> 2700 | L129: 0 | N129: 0
H130: 1 | J130: =J129-L130 -> 2211.369091 | L130: =L109-J109 -> 488.6309093 | N130: =IF(AND(J129>0,J130<=0),H130,0) -> 0
H131: 2 | J131: =J130-L131 -> 1708.079254 | L131: =L110-J110 -> 503.2898366 | N131: =IF(AND(J130>0,J131<=0),H131,0) -> 0
H132: 3 | J132: =J131-L132 -> 1189.690722 | L132: 518.3885317 | N132: 0
H133: 4 | J133: 655.7505347 | L133: 533.9401877 | N133: 0
H134: 5 | J134: 105.7921414 | L134: 549.9583933 | N134: 0
H135: 6 | J135: -460.6650037 | L135: =L114-J114 -> 566.4571451 | N135: 6
H136: 7 | J136: =J135-L136 -> -1044.115863 | L136: 583.4508594 | N136: 0
H137: 8 | J137: -1645.070248 | L137: 600.9543852 | N137: 0
H138: 9 | J138: -2264.053265 | L138: 618.9830168 | N138: 0
H139: 10 | J139: -2901.605772 | L139: 637.5525073 | N139: 0
H140: Summe | J140: =-1*J139 -> 2901.605772 | L140: =SUM(L129:M139) -> 5601.605772 | N140: =MAX(N129:N139) -> 6
H143: Nebenrechnung | J143: m | L143: n
H144: (Nullpunktberechnung Amortisation) | J144: =VLOOKUP(N140,H129:K144,3,FALSE)-VLOOKUP(N140-1,H129:K144,3,FALSE) -> -566.4571451 | L144: =VLOOKUP(N140,H129:K144,3,FALSE)-J144*N140 -> 2938.077867
H150: Kapitalentwicklung | J150: Bank | L150: Wärmepumpe
H151: 0 | J151: =J129 -> 2700 | L151: 0
H152: 1 | J152: =J151+J151*Einstellungen!$D$24/100 -> 2767.5 | L152: =L151+L130 -> 488.6309093
H153: 2 | J153: =J152+J152*Einstellungen!$D$24/100 -> 2836.6875 | L153: =L152+L131 -> 991.9207459
H154: 3 | J154: =J153+J153*Einstellungen!$D$24/100 -> 2907.604688 | L154: =L153+L132 -> 1510.309278
H155: 4 | J155: =J154+J154*Einstellungen!$D$24/100 -> 2980.294805 | L155: 2044.249465
H156: 5 | J156: =J155+J155*Einstellungen!$D$24/100 -> 3054.802175 | L156: 2594.207859
H157: 6 | J157: =J156+J156*Einstellungen!$D$24/100 -> 3131.172229 | L157: 3160.665004
H158: 7 | J158: =J157+J157*Einstellungen!$D$24/100 -> 3209.451535 | L158: 3744.115863
H159: 8 | J159: =J158+J158*Einstellungen!$D$24/100 -> 3289.687823 | L159: 4345.070248
H160: 9 | J160: =J159+J159*Einstellungen!$D$24/100 -> 3371.930019 | L160: 4964.053265
H161: 10 | J161: =J160+J160*Einstellungen!$D$24/100 -> 3456.228269 | L161: 5601.605772
H164: PV-Strom
H166: Mit PV rechnen ? | J166: =IF(C90=4,TRUE,FALSE) -> FALSE | L166: =J166 -> FALSE
H167: Solarertrag | J167: =VLOOKUP(C61,Leistungsdaten!A:H,8,FALSE)*Einstellungen!D87 -> 0 | L167: 0 | N167: kWh/Jahr
H168: Eigenverbrauch | J168: =Einstellungen!$D$89/100*J167 -> 0 | L168: 0 | N168: kWh/Jahr
H169: Einspeisung | J169: =J167-J168 -> 0 | L169: 0 | N169: kWh/Jahr
H170: Anteil WWK am Eigenverbrauch | J170: 0.33 | L170: 0 | N170: Eingabe
H171: Eigenverbrauch WWK | J171: =J170*J168 -> 0 | L171: 0 | N171: kWh/Jahr
H172: Eigenverbrauch Haushalt | J172: =J168-J171 -> 0 | L172: 0 | N172: kWh/Jahr
H173: Haushaltstrom | J173: =IF(J166=FALSE,0,Einstellungen!D91) -> 0 | L173: =J173 -> 0 | N173: kWh/Jahr
H174: Stromkosten Haushalt | J174: =IF(J166=FALSE,0,MAX(0,(J173-J172)*Einstellungen!$D$74/100)) -> 0 | L174: =IF(L166=FALSE,0,L173*Einstellungen!$D$74/100) -> 0 | N174: €/Jahr
H175: Einspeisevergütung | J175: =IF(J166=FALSE,0,J169*Einstellungen!$D$93/100) -> 0 | L175: 0 | N175: €/Jahr
H176: Eigenverbrauch WWK | J176: =IF(J166=FALSE,0,J171*Einstellungen!$D$93/100) -> 0 | L176: 0 | N176: €/Jahr

Sheet Leistungsdaten (hidden)
N1: Gerät anzeigen?
A2: WP-Typ | B2: JAZ | C2: Wärmeverlust | D2: Preis (netto) | E2: Installation | F2: Speichertemp | G2: E-Träger | H2: Kwpeak | L2: Artikelnr. | N2: Deutsch | O2: English Int | P2: English UK | Q2: Holländisch | R2: Französisch | S2: Platzhalter | T2: Platzhalter | U2: Platzhalter | V2: Platzhalter | W2: Platzhalter | X2: Platzhalter | Y2: Platzhalter | Z2: Platzhalter | AA2: Platzhalter | AB2: Platzhalter | AC2: Platzhalter
A3: WWK 220 electronic | B3: 3.2 | C3: 0.79 | D3: 2350 | E3: 350 | F3: 55 | G3: 1 | H3: 0 | L3: 231208 | N3: TRUE | O3: TRUE | P3: FALSE | Q3: TRUE | R3: TRUE | S3: TRUE | T3: TRUE | U3: TRUE | V3: TRUE | W3: TRUE | X3: TRUE | Y3: TRUE | Z3: TRUE | AA3: TRUE | AB3: TRUE | AC3: TRUE
A4: WWK 300 electronic | B4: 3.6 | C4: 1.08 | D4: 2450 | E4: 350 | F4: 55 | G4: 1 | H4: 0 | L4: 231210 | N4: TRUE | O4: TRUE | P4: FALSE | Q4: TRUE | R4: TRUE | S4: TRUE | T4: TRUE | U4: TRUE | V4: TRUE | W4: TRUE | X4: TRUE | Y4: TRUE | Z4: TRUE | AA4: TRUE | AB4: TRUE | AC4: TRUE
A5: WWK 300 electronic SOL | B5: 3.6 | C5: 1.08 | D5: 2950 | E5: 350 | F5: 55 | G5: 1 | H5: 0 | L5: 233583 | N5: TRUE | O5: TRUE | P5: FALSE | Q5: TRUE | R5: TRUE | S5: TRUE | T5: TRUE | U5: TRUE | V5: TRUE | W5: TRUE | X5: TRUE | Y5: TRUE | Z5: TRUE | AA5: TRUE | AB5: TRUE | AC5: TRUE
A6: WWK 300 | B6: 4.1 | C6: 0.96 | D6: 2700 | E6: 350 | F6: 55 | G6: 1 | H6: 0 | L6: 74361 | N6: TRUE | O6: TRUE | P6: FALSE | Q6: TRUE | R6: TRUE | S6: TRUE | T6: TRUE | U6: TRUE | V6: TRUE | W6: TRUE | X6: TRUE | Y6: TRUE | Z6: TRUE | AA6: TRUE | AB6: TRUE | AC6: TRUE
A7: WWK 221 electronic | B7: 3.2 | C7: 0.67 | D7: 2650 | E7: 350 | F7: 55 | G7: 1 | H7: 0 | L7: 230949 | N7: TRUE | O7: TRUE | P7: FALSE | Q7: TRUE | R7: TRUE | S7: TRUE | T7: TRUE | U7: TRUE | V7: TRUE | W7: TRUE | X7: TRUE | Y7: TRUE | Z7: TRUE | AA7: TRUE | AB7: TRUE | AC7: TRUE
A8: WWK 301 electronic | B8: 3.6 | C8: 0.79 | D8: 2750 | E8: 350 | F8: 55 | G8: 1 | H8: 0 | L8: 230950 | N8: TRUE | O8: TRUE | P8: FALSE | Q8: TRUE | R8: TRUE | S8: TRUE | T8: TRUE | U8: TRUE | V8: TRUE | W8: TRUE | X8: TRUE | Y8: TRUE | Z8: TRUE | AA8: TRUE | AB8: TRUE | AC8: TRUE
A9: WWK 301 electronic SOL | B9: 3.6 | C9: 0.79 | D9: 3250 | E9: 350 | F9: 55 | G9: 1 | H9: 0 | L9: 233584 | N9: TRUE | O9: TRUE | P9: FALSE | Q9: TRUE | R9: TRUE | S9: TRUE | T9: TRUE | U9: TRUE | V9: TRUE | W9: TRUE | X9: TRUE | Y9: TRUE | Z9: TRUE | AA9: TRUE | AB9: TRUE | AC9: TRUE
A10: WWS 20 | B10: 3.8 | C10: 2.4 | D10: 3600 | E10: 350 | F10: 55 | G10: 1 | H10: 0 | L10: 233898 | N10: TRUE | O10: TRUE | P10: FALSE | Q10: TRUE | R10: TRUE | S10: TRUE | T10: TRUE | U10: TRUE | V10: TRUE | W10: TRUE | X10: TRUE | Y10: TRUE | Z10: TRUE | AA10: TRUE | AB10: TRUE | AC10: TRUE
A11: WWK 300 A | B11: 3.19 | C11: 1.24 | D11: 2850 | E11: 350 | F11: 55 | G11: 1 | H11: 0 | L11: 222422 | N11: FALSE | O11: TRUE | P11: TRUE | Q11: FALSE | R11: FALSE | S11: TRUE | T11: TRUE | U11: TRUE | V11: TRUE | W11: TRUE | X11: TRUE | Y11: TRUE | Z11: TRUE | AA11: TRUE | AB11: TRUE | AC11: TRUE
A12: WWK 300 AP | B12: 3.19 | C12: 1.24 | D12: 2850 | E12: 350 | F12: 55 | G12: 1 | H12: 0 | L12: 222422 | N12: FALSE | O12: TRUE | P12: FALSE | Q12: FALSE | R12: FALSE | S12: TRUE | T12: TRUE | U12: TRUE | V12: TRUE | W12: TRUE | X12: TRUE | Y12: TRUE | Z12: TRUE | AA12: TRUE | AB12: TRUE | AC12: TRUE
A13: WWK 300 AH | B13: 3.19 | C13: 1.24 | D13: 3000 | E13: 350 | F13: 55 | G13: 1 | H13: 0 | L13: 227070 | N13: FALSE | O13: TRUE | P13: TRUE | Q13: FALSE | R13: FALSE | S13: TRUE | T13: TRUE | U13: TRUE | V13: TRUE | W13: TRUE | X13: TRUE | Y13: TRUE | Z13: TRUE | AA13: TRUE | AB13: TRUE | AC13: TRUE
A14: WWK 300 AHP | B14: 3.19 | C14: 1.24 | D14: 3000 | E14: 350 | F14: 55 | G14: 1 | H14: 0 | L14: 227070 | N14: FALSE | O14: TRUE | P14: FALSE | Q14: FALSE | R14: FALSE | S14: TRUE | T14: TRUE | U14: TRUE | V14: TRUE | W14: TRUE | X14: TRUE | Y14: TRUE | Z14: TRUE | AA14: TRUE | AB14: TRUE | AC14: TRUE
A15: WWK 300 GP | B15: 3.19 | C15: 1.25 | D15: 2700 | E15: 350 | F15: 55 | G15: 1 | H15: 0 | L15: 227072 | N15: FALSE | O15: TRUE | P15: FALSE | Q15: FALSE | R15: FALSE | S15: TRUE | T15: TRUE | U15: TRUE | V15: TRUE | W15: TRUE | X15: TRUE | Y15: TRUE | Z15: TRUE | AA15: TRUE | AB15: TRUE | AC15: TRUE
A16: TEGREON 1201 WWK | B16: 4.1 | C16: 0.96 | D16: 7800 | E16: 2000 | F16: 55 | G16: 4 | H16: 3.06 | L16: 273310 | N16: TRUE | O16: TRUE | P16: FALSE | Q16: FALSE | R16: FALSE | S16: TRUE | T16: TRUE | U16: TRUE | V16: TRUE | W16: TRUE | X16: TRUE | Y16: TRUE | Z16: TRUE | AA16: TRUE | AB16: TRUE | AC16: TRUE
A17: TEGREON 1202 WWK | B17: 4.1 | C17: 0.96 | D17: 7900 | E17: 2000 | F17: 55 | G17: 4 | H17: 3.06 | L17: 273311 | N17: TRUE | O17: TRUE | P17: FALSE | Q17: FALSE | R17: FALSE | S17: TRUE | T17: TRUE | U17: TRUE | V17: TRUE | W17: TRUE | X17: TRUE | Y17: TRUE | Z17: TRUE | AA17: TRUE | AB17: TRUE | AC17: TRUE
A18: TEGREON 1601 WWK | B18: 4.1 | C18: 0.96 | D18: 9300 | E18: 2000 | F18: 55 | G18: 4 | H18: 4.08 | L18: 273312 | N18: TRUE | O18: TRUE | P18: FALSE | Q18: FALSE | R18: FALSE | S18: TRUE | T18: TRUE | U18: TRUE | V18: TRUE | W18: TRUE | X18: TRUE | Y18: TRUE | Z18: TRUE | AA18: TRUE | AB18: TRUE | AC18: TRUE
A19: TEGREON 1602 WWK | B19: 4.1 | C19: 0.96 | D19: 9400 | E19: 2000 | F19: 55 | G19: 4 | H19: 4.08 | L19: 273313 | N19: TRUE | O19: TRUE | P19: FALSE | Q19: FALSE | R19: FALSE | S19: TRUE | T19: TRUE | U19: TRUE | V19: TRUE | W19: TRUE | X19: TRUE | Y19: TRUE | Z19: TRUE | AA19: TRUE | AB19: TRUE | AC19: TRUE
A20: TEGREON 2001 WWK | B20: 4.1 | C20: 0.96 | D20: 11000 | E20: 2000 | F20: 55 | G20: 4 | H20: 5.1 | L20: 273314 | N20: TRUE | O20: TRUE | P20: FALSE | Q20: FALSE | R20: FALSE | S20: TRUE | T20: TRUE | U20: TRUE | V20: TRUE | W20: TRUE | X20: TRUE | Y20: TRUE | Z20: TRUE | AA20: TRUE | AB20: TRUE | AC20: TRUE
A21: TEGREON 2002 WWK | B21: 4.1 | C21: 0.96 | D21: 11100 | E21: 2000 | F21: 55 | G21: 4 | H21: 5.1 | L21: 273315 | N21: TRUE | O21: TRUE | P21: FALSE | Q21: FALSE | R21: FALSE | S21: TRUE | T21: TRUE | U21: TRUE | V21: TRUE | W21: TRUE | X21: TRUE | Y21: TRUE | Z21: TRUE | AA21: TRUE | AB21: TRUE | AC21: TRUE
A49: Vergleichssystem | B49: Wirkungsgrad | C49: Wärmeverlust | D49: Preis (netto) | E49: Installation | F49: Speichertemp | H49: Kwpeak | L49: mediando
A50: =Translation!$A$67&" "&"SHW 200 S" -> El. Cylinder SHW 200 S | B50: 1 | C50: 1.5 | D50: 1542 | E50: 350 | F50: 55 | G50: 1 | H50: 0 | L50: 182120
A51: =Translation!$A$67&" "&"SHW 300 S" -> El. Cylinder SHW 300 S | B51: 1 | C51: 1.9 | D51: 1693 | E51: 350 | F51: 55 | G51: 1 | H51: 0 | L51: 182121
A52: =Translation!$A$67&" "&"SHW 400 S" -> El. Cylinder SHW 400 S | B52: 1 | C52: 2.25 | D52: 2058 | E52: 350 | F52: 55 | G52: 1 | H52: 0 | L52: 182122
A53: =Translation!$A$67&" "&"HSTP 200" -> El. Cylinder HSTP 200 | B53: 1 | C53: 1.9 | D53: 1314 | E53: 350 | F53: 55 | G53: 1 | H53: 0 | L53: 71264
A54: =Translation!$A$67&" "&"HSTP 300" -> El. Cylinder HSTP 300 | B54: 1 | C54: 2.2 | D54: 1463 | E54: 350 | F54: 55 | G54: 1 | H54: 0 | L54: 71267
A55: =Translation!$A$67&" "&"HSTP 400" -> El. Cylinder HSTP 400 | B55: 1 | C55: 2.7 | D55: 1777 | E55: 350 | F55: 55 | G55: 1 | H55: 0 | L55: 71270
A56: =Translation!A65 -> Oil boiler + DHW cylinder | B56: 0.85 | C56: 2 | D56: 850 | E56: 350 | F56: 75 | G56: 2 | H56: 0
A57: =Translation!A66 -> Gas boiler + DHW cylinder | B57: 0.85 | C57: 2 | D57: 850 | E57: 350 | F57: 75 | G57: 3 | H57: 0
A99: Wandspeicher-Typ | B99: JAZ | C99: Wärmeverlust | D99: Preis (netto) | E99: Installation | J99: PDF-DE | K99: PDF-Eng | L99: mediando

Sheet Translation (hidden)
B1: >>> Bei neuer Sprache im Blatt Leistungsdaten die WWKs wählen, die für die Sprache angezeigt werden sollen
A2: English International | B2: Deutsch | C2: English International | D2: English UK | E2: Holländisch | F2: Französisch | G2: Finnisch | H2: Spanish | I2: Slovak | J2: Dansk | K2: Litauisch | L2: Latviski | M2: Italienisch
A3: de/en | B3: de/de | C3: de/en | D3: de/en | E3: be/nl | F3: be/fr | G3: fi/fi
A4: WWK vs Hot water cylinders | B4: WWK-Renditerechner | C4: WWK vs Hot water cylinders | D4: WWK vs Hot water cylinders | E4: WWK vs. staande boiler | F4: WWK vs. chauffe-eau sur socle
A5: Please select your draw-off point and frequency of use. | B5: Bitte wählen Sie Entnahmestellen und Nutzungshäufigkeit | C5: Please select your draw-off point and frequency of use. | D5: Please select your draw-off point and frequency of use. | E5: Geef aub voor alle aftappunten het verbruik in | F5: Introduisez la consommation pour chaque point de soutirage
A6: Bath tub | B6: Badewanne | C6: Bath tub | D6: Bath tub | E6: Badkuip | F6: Baignoire
A7: Shower | B7: Dusche | C7: Shower | D7: Shower | E7: Douche | F7: Douche
A8: Basin | B8: Badwaschbecken | C8: Basin | D8: Basin | E8: Wastafel badkamer | F8: Évier salle de bains
A9: Kitchen sink | B9: Küchenspüle | C9: Kitchen sink | D9: Kitchen sink | E9: Spoeltafel keuken | F9: Évier cuisine
A10: Handwash sink | B10: Handwaschbecken | C10: Handwash sink | D10: Handwash sink | E10: Handwastafel | F10: Lavabo
A11: per week | B11: pro Woche | C11: per week | D11: per week | E11: per week | F11: par semaine
A12: per day | B12: pro Tag | C12: per day | D12: per day | E12: per dag | F12: par jour
A13: No bath tub | B13: Keine Badewanne | C13: No bath tub | D13: No bath tub | E13: Geen badkuip | F13: Pas de baignoire
A14: No shower | B14: Keine Dusche | C14: No shower | D14: No shower | E14: Geen douche | F14: Pas de douche
A15: No basin | B15: Kein Waschbecken | C15: No basin | D15: No basin | E15: Geen wastafel | F15: Pas d'évier
A16: No kitchen sink | B16: Keine Küchenspüle | C16: No kitchen sink | D16: No kitchen sink | E16: Geen spoeltafel | F16: Pas d'évier de cuisine
A17: No handw. sink | B17: Kein Waschbecken | C17: No handw. sink | D17: No handw. sink | E17: Geen wastafel | F17: Pas d'évier
A18: Energy demand | B18: Energiebedarf | C18: Energy demand | D18: Energy demand | E18: Energieverbruik | F18: Consommation énergétique
A19: Energy costs | B19: Energiekosten | C19: Energy costs | D19: Energy costs | E19: Energiekosten | F19: Coûts énergétiques
A20: Please select the DHW heat pump | B20: Bitte wählen Sie die Warmwasser-Wärmepumpe | C20: Please select the DHW heat pump | D20: Please select the DHW heat pump | E20: Kies aub een warmtepompboiler | F20: Choisissez un chauffe-eau thermodynamique svp
A21: How do you actually generate your hot water? | B21: Wie erzeugen Sie aktuell Ihr Warmwasser ? | C21: How do you actually generate your hot water? | D21: How do you actually generate your hot water? | E21: Hoe bereidt u nu uw warm water? | F21: Comment préparez-vous votre eau chaude pour l'instant ?
A22: DHW cylinder is broken? | B22: Speicher defekt ? | C22: DHW cylinder is broken? | D22: DHW cylinder is broken? | E22: Boiler defect? | F22: Chauffe-eau défectueux ?
A23: Replacement is required | B23: Austausch ist erforderlich | C23: Replacement is required | D23: Replacement is required | E23: Vervanging is noodzakelijk | F23: Remplacement nécessaire
A24: Replacement is not required | B24: Austausch nicht erforderlich | C24: Replacement is not required | D24: Replacement is not required | E24: Vervanging is niet noodzakelijk | F24: Remplacement pas nécessaire
A25: Electricity requirement | B25: Strombedarf | C25: Electricity requirement | D25: Electricity requirement | E25: Stroomverbruik | F25: Consommation énergétique
A26: Electricity requirement [kWh/year] | B26: Strombedarf [kWh/Jahr] | C26: Electricity requirement [kWh/year] | D26: Electricity requirement [kWh/year] | E26: Stroomverbruik [kWh/jaar] | F26: Consommation énergétique (kWh/an)
A27: kWh/year | B27: kWh/Jahr | C27: kWh/year | D27: kWh/year | E27: kWh/jaar | F27: kWh/an
A28: Heat | B28: Wärme | C28: Heat | D28: Heat | E28: Warmte | F28: Chaleur
A29: Water | B29: Wasser | C29: Water | D29: Water | E29: Water | F29: Eau
A30: CO2 | B30: CO2 | C30: CO2 | D30: CO2 | E30: CO2 | F30: CO2
A31: kg/year | B31: kg/Jahr | C31: kg/year | D31: kg/year | E31: kg/jaar | F31: kg/an
A32: m³/year | B32: m³/Jahr | C32: m³/year | D32: m³/year | E32: m³/jaar | F32: m²/an
A33: Energy costs | B33: Energiekosten | C33: Energy costs | D33: Energy costs | E33: Energiekosten | F33: Coûts énergétiques
A34: Energy costs [€/a] | B34: Energiekosten [€/a] | C34: Energy costs [€/a] | D34: Energy costs [£/a] | E34: Energiekosten [€/jaar] | F34: Coûts énergétiques [€/an]
A35: €/year | B35: €/Jahr | C35: €/year | D35: £/year | E35: €/jaar | F35: €/an
A36: Energy costs in 10 Years | B36: Energiekosten in 10 Jahren | C36: Energy costs in 10 Years | D36: Energy costs in 10 Years | E36: Energiekosten op 10 jaar | F36: Coûts énergétiques sur 10 ans
A37: € | B37: € | C37: € | D37: £ | E37: € | F37: €
A38: Savings resulting in 10 Years | B38: Ersparnis in 10 Jahren | C38: Savings resulting in 10 Years | D38: Savings resulting in 10 Years | E38: Besparing op 10 jaar | F38: Économie sur 10 ans
A39: The use of the calculation tool is exclusiv for determining the economy of DHW heat pumps. It does not replace the design of the required size of heat pump and hot water cylinders. | B39: Einsatz des Berechnungstools ausschließlich zur Bestimmung der Wirtschaftlichkeit von Warmwasser-Wärmepumpen. Es ersetzt nicht die Auslegung der erforderlichen Speichergröße von Wärmepumpe und Standspeicher. | C39: The use of the calculation tool is exclusiv for determining the economy of DHW heat pumps. It does not replace the design of the required size of heat pump and hot water cylinders. | D39: The use of the calculation tool is exclusiv for determining the economy of DHW heat pumps. It does not replace the design of the required size of heat pump and hot water cylinders. | E39: Deze tool berekent uitsluitend de rentabiliteit van warmtepompboilers. Hij geeft geen indicatie over de nodige grootte van de warmtepomp en boiler. | F39: Cet outil calcule uniquement la rentabilité des chauffe-eaux thermodynamiques. Il ne donne aucune indication sur la capacité nécessaire de la pompe à chaleur et du chauffe-eau.
A40: Year | B40: Jahr | C40: Year | D40: Year | E40: Jaar | F40: An
A41: Type of heat pump | B41: Typ Wärmepumpe | C41: Type of heat pump | D41: Type of heat pump | E41: Type warmtepomp | F41: Type de pompe à chaleur
A42: Yearly COP | B42: Jahresarbeitszahl | C42: Yearly COP | D42: Yearly COP | E42: SPF (jaarlijks rendement) | F42: SPF (rendement annuel)
A43: Heat losses [kWh/day] | B43: Wärmeverluste [kWh/Tag] | C43: Heat losses [kWh/day] | D43: Heat losses [kWh/day] | E43: Warmteverliezen [kWh/dag] | F43: Déperditions calorifiques
A44: Investment costs [€] | B44: Investitionskosten [€] | C44: Investment costs [€] | D44: Investment costs [£] | E44: Investeringskost [€] | F44: Prix [€ incl. 6% tva]
A45: Installation costs [€] | B45: Installationskosten [€] | C45: Installation costs [€] | D45: Installation costs [£] | E45: Installatiekost [€] | F45: Installation [€ incl. 6% tva]
A46: Heat generator | B46: Wärmeerzeuger | C46: Heat generator | D46: Heat generator | E46: Warmteopwekker | F46: Source de chaleur
A47: Amortization | B47: Amortisation | C47: Amortization | D47: Amortization | E47: Aflossing | F47: Amortissement
A48: Amortization [€] | B48: Amortisation [€] | C48: Amortization [€] | D48: Amortization [£] | E48: Aflossing [€] | F48: Amortissement [€]
A49: Years | B49: Jahre | C49: Years | D49: Years | E49: Jaren | F49: Années
A50: Yield with heat pump in 10 years | B50: Ertrag mit Wärmepumpe nach 10 Jahren | C50: Yield with heat pump in 10 years | D50: Yield with heat pump in 10 years | E50: Opbrengst met warmtepomp na 10 jaar | F50: Bénéfice avec une pompe à chaleur après 10 ans
A51: One-off costs | B51: Einmalige Kosten | C51: One-off costs | D51: One-off costs | E51: Eenmalige kosten | F51: Coût unique
A52: Repeated costs | B52: Mehrkosten einmalig | C52: Repeated costs | D52: Repeated costs | E52: Eenmalige meerkost | F52: Surcoût unique
A53: Energy cost savings | B53: Energiekostenersparnis | C53: Energy cost savings | D53: Energy cost savings | E53: Energiekostenbesparing | F53: Réduction des coûts énergétiques
A54: Return on capital employed | B54: Rendite des eingesetzten Kapitals | C54: Return on capital employed | D54: Return on capital employed | E54: Rendement van het ingebracht kapitaal | F54: Rendement du capital injecté
A55: Return on capital | B55: Rendite | C55: Return on capital | D55: Return on capital | E55: Rendement | F55: Rendement
A56: Invested capital | B56: Eingesetztes Kapital | C56: Invested capital | D56: Invested capital | E56: Ingebracht kapitaal | F56: Capital injecté
A57: Medium income | B57: Mittlerer Ertrag | C57: Medium income | D57: Medium income | E57: Gemiddelde opbrengst | F57: Bénéfice moyen
A58: Capital gains | B58: Kapitalertrag | C58: Capital gains | D58: Capital gains | E58: Kapitaalopbrengst | F58: Revenu du capital
A59: Miss interest rates | B59: Entgangene Zinsen | C59: Miss interest rates | D59: Miss interest rates | E59: Verloren intresten | F59: Intérêts perdus
A60: € in 10 years | B60: € in 10 Jahren | C60: € in 10 years | D60: £ in 10 years | E60: € op 10 jaar | F60: € sur 10 ans
A61: Period under consideration of 10 years | B61: Betrachtungszeitraum 10 Jahre | C61: Period under consideration of 10 years | D61: Period under consideration of 10 years | E61: Beschouwde termijn 10 jaar | F61: Délai considéré 10 ans
A62: Interest rate of the bank | B62: Bank-Guthabenzinssatz | C62: Interest rate of the bank | D62: Interest rate of the bank | E62: Intrestvoet bank | F62: Taux d'intérêt banque
A63: Bank balances | Savings in electricity costs [€] | B63: Bankguthaben | Stromkostenersparnis [€] | C63: Bank balances | Savings in electricity costs [€] | D63: Bank balances | Savings in electricity costs [£] | E63: Banksaldo | Stroomkostenbesparing [€] | F63: Solde bancaire | Bénéfice consommation énergétique [€]
A64: Funds in the bank | B64: Geldanlage Bank | C64: Funds in the bank | D64: Funds in the bank | E64: Geldbelegging bank | F64: Placement bancaire
A65: Oil boiler + DHW cylinder | B65: Ölkessel + Speicher | C65: Oil boiler + DHW cylinder | D65: Oil boiler + DHW cylinder | E65: Stookolieketel + boiler | F65: Chaudière fuel avec chauffe-eau
A66: Gas boiler + DHW cylinder | B66: Gaskessel + Speicher | C66: Gas boiler + DHW cylinder | D66: Gas boiler + DHW cylinder | E66: Gasketel + boiler | F66: Chaudière gaz avec chauffe-eau
A67: El. Cylinder | B67: E-Speicher | C67: El. Cylinder | D67: El. Cylinder | E67: Elektrische boiler | F67: Chauffe-eau électrique
A68: Net energy demand | B68: Endenergiebedarf | C68: Net energy demand | D68: Net energy demand | E68: Eindenergiebehoefte | F68: Besoin énergétique final
A70: Options | B70: Einstellungen | C70: Options | D70: Options | E70: Instellingen | F70: Paramètres
A71: General Setting | B71: Allgemeine Einstellungen | C71: General Setting | D71: General Setting | E71: Algemene instellingen | F71: Paramètres généraux
A72: Default values | B72: Alles zurücksetzen | C72: Default values | D72: Default values | E72: Alles resetten | F72: Tout réinitialiser
A73: Save & Back | B73: Speichern & Zurück | C73: Save & Back | D73: Save & Back | E73: Opslaan en terug | F73: Sauvegarder et retour
A74: Electricity price | B74: Strompreis | C74: Electricity price | D74: Electricity price | E74: Stroomprijs | F74: Prix de l'électricité
A75: Oil price | B75: Ölpreis | C75: Oil price | D75: Oil price | E75: Stookolieprijs | F75: Prix du mazout
A76: Gas price | B76: Gaspreis | C76: Gas price | D76: Gas price | E76: Gasprijs | F76: Prix du gaz
A77: Up-time DHW | B77: Nutzungsdauer Warmwasser | C77: Up-time DHW | D77: Up-time DHW | E77: Duur jaarlijks warmwaterverbruik | F77: Durée consommation annuelle eau chaude
A78: CO2-emmision electricity | B78: CO2-Emmision Strom | C78: CO2-emmision electricity | D78: CO2-emmision electricity | E78: CO2-uitstoot stroom | F78: CO2-puissance d'émission électricité
A79: CO2-emmision oil | B79: CO2-Emmision Öl | C79: CO2-emmision oil | D79: CO2-emmision oil | E79: CO2-uitstoot stookolie | F79: CO2- puissance d'émission mazout
A80: CO2-emmision gas | B80: CO2-Emmision Gas | C80: CO2-emmision gas | D80: CO2-emmision gas | E80: CO2-uitstoot gas | F80: CO2-puissance d'émission gaz
A81: Weeks/year | B81: Wochen/Jahr | C81: Weeks/year | D81: Weeks/year | E81: Weken/jaar | F81: Semaines/année
A82: Cold water temperature | B82: Kaltwassertemperatur | C82: Cold water temperature | D82: Cold water temperature | E82: Koudwatertemperatuur | F82: Température eau froide
A83: Electricity price increase | B83: Strompreissteigerung | C83: Electricity price increase | D83: Electricity price increase | E83: Stoomprijsstijging | F83: Augmentation prix de l'électricité
A84: Price increase Oil/Gas | B84: Preissteigerung Öl/Gas | C84: Price increase Oil/Gas | D84: Price increase Oil/Gas | E84: Prijsstijging stookolie/gas | F84: Augmentation prix mazout/gaz
A85: % per year | B85: % pro Jahr | C85: % per year | D85: % per year | E85: % per jaar | F85: % par an
A86: Heat loss of hot water distribution | B86: Wärmeverluste Warmwasserverteilung | C86: Heat loss of hot water distribution | D86: Heat loss of hot water distribution | E86: Warmteverliezen warmwaterverdeling | F86: Déperdition chaleur répartition eau chaude
A87: Medium volume flow | B87: Mittlerer Durchfluss | C87: Medium volume flow | D87: Medium volume flow | E87: Gemiddelde doorstroom | F87: Flux moyen
A88: Time of tapping | B88: Entnahmedauer | C88: Time of tapping | D88: Time of tapping | E88: Afnameduur | F88: Prélèvement durée
A89: Draw-off temperature | B89: Entnahmetemperatur | C89: Draw-off temperature | D89: Draw-off temperature | E89: Afnametemperatuur | F89: Prélèvement température
A90: Liter/min | B90: Liter/min | C90: Liter/min | D90: Liter/min | E90: Liter/min. | F90: Litres/min.
A91: min | B91: min | C91: min | D91: min | E91: min. | F91: min.
A92: Restore to standard values ? | B92: Alle Änderungen werden verworfen. Fortfahren? | C92: Restore to standard values ? | D92: Restore to standard values ? | E92: Alle wijzigingen worden verworpen. Verder gaan? | F92: Toutes les modifications sont rejetées. Continuer ?
A93: Ct/kWh | B93: Ct/kWh | C93: Ct/kWh | D93: Pence/kWh | E93: Ct/kWh | F93: Ct/kWh
A94: Share integrated electric heater heat pump | B94: Anteil integrierter Heizstab Wärmepumpe | C94: Share integrated electric heater heat pump | D94: Share integrated electric heater heat pump | E94: Aandeel geïntegreerde verwarmingsstaaf warmtepomp | F94: Nombres d'éléments de chauffage intégrés pompe à chaleur
A95: Interest rate of the bank-investments | B95: Guthabenzinssatz bei Bank-Geldanlage | C95: Interest rate of the bank-investments | D95: Interest rate of the bank-investments | E95: Intrestvoet bij bankbelegging | F95: Taux d'intérêt investissement bancaire
A96: Energy prices | B96: Energiepreise | C96: Energy prices | D96: Energy prices | E96: Energieprijzen | F96: Prix d'énergie
A97: Solar thermal system | B97: Solaranlage | C97: Solar thermal system | D97: Solar thermal system | E97: Zonnesysteem | F97: Système solaire
A98: Own consumption | B98: Eigenverbrauchsanteil | C98: Own consumption | D98: Own consumption | E98: Aandeel eigen verbruik | F98: Part propre consommation
A99: Own consumption household: | B99: Davon werden im Haushalt selbst verbraucht: | C99: Own consumption household: | D99: Own consumption household: | E99: Daarvan wordt in het huishouden zelf verbruikt: | F99: Dont sont utilisées par le ménage :
A100: Electricity demand household | B100: Strombedarf Haushalt | C100: Electricity demand household | D100: Electricity demand household | E100: Stroomverbruik huishouden | F100: Consommation électrique ménagère
A101: Feed-in remuneration | B101: Einspeisevergütung | C101: Feed-in remuneration | D101: Feed-in remuneration | E101: Vergoeding injectie in het net | F101: Indemnité injection dans le réseau
A102: Annual yields of solar thermal system | B102: Jährlicher Ertrag Solaranlage | C102: Annual yields of solar thermal system | D102: Annual yields of solar thermal system | E102: Jaarlijkse opbrengst zonnesysteem | F102: Bénéfice annuel système solaire
A103: Entnahmestellen und Nutzungshäufigkeit | B103: Entnahmestellen und Nutzungshäufigkeit | C103: Entnahmestellen und Nutzungshäufigkeit | D103: Entnahmestellen und Nutzungshäufigkeit | E103: Entnahmestellen und Nutzungshäufigkeit | F103: Entnahmestellen und Nutzungshäufigkeit
A104: Entnahmestellen | B104: Entnahmestellen | C104: Entnahmestellen | D104: Entnahmestellen | E104: Entnahmestellen | F104: Entnahmestellen
A105: Nutzungshäufigkeit | B105: Nutzungshäufigkeit | C105: Nutzungshäufigkeit | D105: Nutzungshäufigkeit | E105: Nutzungshäufigkeit | F105: Nutzungshäufigkeit
A106: Warmwasser-Wärmepumpe | B106: Warmwasser-Wärmepumpe | C106: Warmwasser-Wärmepumpe | D106: Warmwasser-Wärmepumpe | E106: Warmwasser-Wärmepumpe | F106: Warmwasser-Wärmepumpe
A107: Warmwassererzeugung | B107: Warmwassererzeugung | C107: Warmwassererzeugung | D107: Warmwassererzeugung | E107: Warmwassererzeugung | F107: Warmwassererzeugung
A108: Strom | B108: Strom | C108: Strom | D108: Strom | E108: Strom | F108: Strom
A109: Öl | B109: Öl | C109: Öl | D109: Öl | E109: Öl | F109: Öl
A110: Gas | B110: Gas | C110: Gas | D110: Gas | E110: Gas | F110: Gas
A111: Strom und Photovoltaik | B111: Strom und Photovoltaik | C111: Strom und Photovoltaik | D111: Strom und Photovoltaik | E111: Strom und Photovoltaik | F111: Strom und Photovoltaik
A112: Standspeicher | B112: Standspeicher | C112: Standspeicher | D112: Standspeicher | E112: Standspeicher | F112: Standspeicher
A113: Eingabewerte | B113: Eingabewerte | C113: Eingabewerte | D113: Eingabewerte | E113: Eingabewerte | F113: Eingabewerte
A114: Legal note | B114: Rechtliche Hinweise | C114: Legal note | D114: Legal note | E114: Juridische informatie | F114: Clause de non-responsabilité
A115: Stiebel Eltron shall not provide any guarantees that the information, values and data provided, or values, information and recommendations determined with the aid or on the basis of such information, values and data, are complete, accurate, correct or current in every respect. Stiebel Eltron shall reserve the right to make changes to the data, values and information provided at any time and without prior notification. Errors excepted. Subject to changes. None of the information, values and data provided or the values, information and recommendations determined with the aid or on the basis of such information, values and data constitutes any basis for a financial decision or for any other purpose, but rather is merely initial non-binding information as an initial guide. Under no circumstances should the following design tool be considered a substitute for consultation with Stiebel Eltron or another authorised expert engineer. Please contact Stiebel Eltron or another authorised expert engineer in relation to specific project design. Stiebel Eltron shall accept no liability for losses of any kind that may arise from the use of information, values and data provided, or values, information and recommendations determined with the aid or on the basis of such information, values and data. This exclusion of liability shall not apply if the loss is due to intent or gross negligence on the part of Stiebel Eltron or in the event of a fatality, physical injury or damage to health. | B115: Stiebel Eltron übernimmt keinerlei Gewährleistung oder Garantie dafür, dass die bereitgestellten Angaben, Werte und Informationen oder die mit Hilfe bzw. anhand dieser Informationen, Werte und Angaben ermittelten Werte und Angaben in jeder Hinsicht vollständig, genau, richtig und aktuell sind. Stiebel Eltron behält sich das Recht vor, jederzeit und ohne vorherige Ankündigung Änderungen der bereitgestellten Angaben, Werte und Informationen vorzunehmen. Irrtum und Änderungen sind ausdrücklich vorbehalten. Keine der bereitgestellten Angaben, Werte und Informationen oder der mit Hilfe bzw. anhand dieser Angaben, Werte und Informationen ermittelten Werte und Angaben sind als Grundlage für eine finanzielle Entscheidung oder für einen sonstigen Zweck anzusehen, sondern dienen vielmehr nur als eine erste unverbindliche Information und als Hilfe zur ersten Orientierung. Unter keinen Umständen ersetzt die Planungshilfe die Beratung durch Stiebel Eltron oder einen autorisierten Fachplaner. Bitte wenden Sie sich für die konkrete Planung des Projektes an Stiebel Eltron oder einen anderen autorisierten Fachplaner. Die Haftung von Stiebel Eltron für Schäden jeglicher Art, die sich möglicherweise aus der Nutzung oder Verwendung der bereitgestellten Informationen, Werte und Angaben oder der mit Hilfe bzw. anhand dieser Angaben, Werte und Informationen ermittelten Werte und Angaben, ergeben, ist ausgeschlossen. Dieser Haftungsausschluss gilt nicht, wenn der Schaden auf Vorsatz oder grobe Fahrlässigkeit von Stiebel Eltron zurückzuführen ist sowie bei einer Verletzung des Lebens, des Körpers oder der Gesundheit. | C115: Stiebel Eltron shall not provide any guarantees that the information, values and data provided, or values, information and recommendations determined with the aid or on the basis of such information, values and data, are complete, accurate, correct or current in every respect. Stiebel Eltron shall reserve the right to make changes to the data, values and information provided at any time and without prior notification. Errors excepted. Subject to changes. None of the information, values and data provided or the values, information and recommendations determined with the aid or on the basis of such information, values and data constitutes any basis for a financial decision or for any other purpose, but rather is merely initial non-binding information as an initial guide. Under no circumstances should the following design tool be considered a substitute for consultation with Stiebel Eltron or another authorised expert engineer. Please contact Stiebel Eltron or another authorised expert engineer in relation to specific project design. Stiebel Eltron shall accept no liability for losses of any kind that may arise from the use of information, values and data provided, or values, information and recommendations determined with the aid or on the basis of such information, values and data. This exclusion of liability shall not apply if the loss is due to intent or gross negligence on the part of Stiebel Eltron or in the event of a fatality, physical injury or damage to health. | D115: Stiebel Eltron shall not provide any guarantees that the information, values and data provided, or values, information and recommendations determined with the aid or on the basis of such information, values and data, are complete, accurate, correct or current in every respect. Stiebel Eltron shall reserve the right to make changes to the data, values and information provided at any time and without prior notification. Errors excepted. Subject to changes. None of the information, values and data provided or the values, information and recommendations determined with the aid or on the basis of such information, values and data constitutes any basis for a financial decision or for any other purpose, but rather is merely initial non-binding information as an initial guide. Under no circumstances should the following design tool be considered a substitute for consultation with Stiebel Eltron or another authorised expert engineer. Please contact Stiebel Eltron or another authorised expert engineer in relation to specific project design. Stiebel Eltron shall accept no liability for losses of any kind that may arise from the use of information, values and data provided, or values, information and recommendations determined with the aid or on the basis of such information, values and data. This exclusion of liability shall not apply if the loss is due to intent or gross negligence on the part of Stiebel Eltron or in the event of a fatality, physical injury or damage to health. | E115: Stiebel Eltron geeft geen enkele garantie dat de aangeboden informatie, waarden en gegevens of de met behulp van of aan de hand van deze informatie, waarden en gegevens berekende waarden, informatie en aanbevelingen in elk opzicht volledig, nauwkeurig, juist en actueel zijn. Stiebel Eltron behoudt zich het recht voor om op elk moment zonder voorafgaande kennisgeving wijzigingen aan te brengen in de aangeboden gegevens, waarden en informatie. Vergissingen en wijzigingen worden door Stiebel Eltron uitdrukkelijk voorbehouden. De aangeboden informatie, waarden en gegevens of de met behulp van of aan de hand van deze informatie, waarden en gegevens berekende waarden, informatie en aanbevelingen betreffen een eerste Stiebel Eltron niet-bindende informatie voorziening die niet kan worden gebruikt als basis voor een financiële beslissing of voor andere doeleinden dan een eerste oriëntatie. Deze planningshulp kan in geen geval dienen als vervanging voor het persoonlijke advies van Stiebel Eltron of een andere geautoriseerde systeemadviseur. Voor de concrete planning van uw project dient u zich te allen tijde te wenden tot Stiebel Eltron of een andere geautoriseerde systeemadviseur. Stiebel Eltron aanvaardt op geen enkele wijze aansprakelijkheid voor schade en/of ander nadeel, direct dan wel indirect, die voortvloeit uit het gebruik of de toepassing van de aangeboden informatie, waarden en gegevens of de met behulp van of aan de hand van deze informatie, waarden en gegevens van berekende waarden, informatie en aanbevelingen. De hierboven omschreven uitsluitingen gelden niet in geval van grove nalatigheid, opzet of schade aan leven, lichaam of gezondheid. | F115: STIEBEL ELTRON ne se porte pas garant de l'exactitude, intégralité, actualité et pertinence des informations, valeurs ou données mises à disposition, ni de toute valeur, information ou recommandation établie à l'aide de ces données, valeurs et informations fournies. STIEBEL ELTRON se réserve le droit de modifier, à tout moment et sans avis préalable, les données, valeurs et informations mises à disposition. Sous réserve de modification et d'erreurs. Les informations, valeurs et données, ou les valeurs, informations et recommandations établies à l'aide de ces informations, valeurs et données, ne doivent être utilisées pour aucune prise de décision financière ou autre. Elles sont fournies à titre indicatif uniquement en ne représentent qu'une source approximative d'information. L'assistant de planification et les informations fournies ci-après ne remplacent en aucun cas le conseil direct d'un expert STIEBEL ELTRON ou de tout autre spécialiste autorisé. Pour la planification concrète de votre projet, veuillez contacter STIEBEL ELTRON ou tout autre spécialiste autorisé. STIEBEL ELTRON décline toute responsabilité pour les dommages éventuels découlant de l'utilisation ou du traitement des informations, valeurs et données mises à disposition, ou des valeurs, informations et recommandations établies à l'aide de ces informations, valeurs et données. Cette exclusion de garantie n'est pas valable en cas de dommage intentionnel découlant d'une négligence grave de la part de Stiebel Eltron, ni en cas d'atteinte à la vie, au corps ou à la santé des utilisateurs.
A116: Print results | B116: Ergebnisse drucken | C116: Print results | D116: Print results | E116: Afdruk | F116: Impresssion
A117: Options | B117: Einstellungen | C117: Options | D117: Options | E117: Opties | F117: Paramètres
A118: Full screen mode | B118: Ganzer Bildschirm | C118: Full screen mode | D118: Full screen mode | E118: Full screen mode | F118: Ganzer Bildschirm
A119: Send E-Mail | B119: E-Mail an uns | C119: Send E-Mail | D119: Send E-Mail | E119: Send E-Mail | F119: E-Mail an uns
A120: Exit program | B120: Programm schließen | C120: Exit program | D120: Exit program | E120: Exit program | F120: Programm schließen
